fUSD/lending_fUSD_20250522
["ID","MTS","AMOUNT","RATE_DAILY","PERIOD"]
[362007237,1747933881915,-451.52,0.00034246,5]
[362007238,1747933881925,-4192.77,0.00034246,5]
[362007239,1747933881935,-515.3,0.00034246,5]
[362007240,1747933881944,-420.0,0.00034246,5]
[362007241,1747933881954,-420.0,0.00034246,5]
[362007242,1747933881963,-420.0,0.00034246,5]
[362007243,1747933881972,-420.0,0.00034246,5]
[362007244,1747933881982,-709.41,0.00034246,5]
[362007245,1747933881991,-510.74,0.00034246,5]
[362007246,1747933882001,-2867.71,0.00034246,5]
[362007247,1747933882011,-688.79,0.00034246,5]
[362007248,1747933882021,-420.0,0.00034246,5]
[362007249,1747933882030,-576.22,0.00034246,5]
[362007250,1747933882041,-478.42,0.00034246,5]
[362007251,1747933882051,-420.0,0.00034246,5]
[362007252,1747933882061,-566.07,0.00034246,5]
[362007253,1747933882070,-420.0,0.00034246,5]
[362007254,1747933882081,-636.56,0.00034246,5]
[362007255,1747933882090,-701.85,0.00034246,5]
[362007256,1747933882100,-776.15,0.00034246,5]
[362007257,1747933882109,-420.0,0.00034246,5]
[362007258,1747933882119,-420.0,0.00034246,5]
[362007259,1747933882128,-420.0,0.00034246,5]
[362007260,1747933882139,-719.59,0.00034246,5]
[362007261,1747933882149,-4703.11950411,0.00034246,5]
[362007262,1747933882522,-737.06049589,0.00034246,5]
[362007263,1747933882532,-420.0,0.00034246,5]
[362007264,1747933882542,-420.0,0.00034246,5]
[362007265,1747933882551,-2209.94,0.00034246,5]
[362007266,1747933882561,-420.0,0.00034246,5]
[362007267,1747933882571,-420.0,0.00034246,5]
[362007268,1747933882580,-761.94,0.00034246,5]
[362007269,1747933882591,-6144.99,0.00034246,5]
[362007270,1747933882601,-771.06,0.00034246,5]
[362007271,1747933882611,-420.0,0.00034246,5]
[362007272,1747933882621,-689.72,0.00034246,5]
[362007273,1747933882631,-420.0,0.00034246,5]
[362007274,1747933882640,-557.56,0.00034246,5]
[362007275,1747933882650,-698.33,0.00034246,5]
[362007276,1747933882661,-681.1,0.00034246,5]
[362007277,1747933882670,-951.74,0.00034246,5]
[362007278,1747933882681,-420.0,0.00034246,5]
[362007279,1747933882692,-1002.07,0.00034246,5]
[362007280,1747933882702,-2150.16,0.00034246,5]
[362007281,1747933882712,-420.0,0.00034246,5]
[362007282,1747933882722,-769.67,0.00034246,5]
[362007283,1747933882732,-1224.35,0.00034246,5]
[362007284,1747933882742,-728.12,0.00034246,5]
[362007285,1747933882755,-1921.29,0.00034246,5]
[362007286,1747933882765,-941.44,0.00034246,5]
[362007287,1747933882775,-420.0,0.00034246,5]
[362007288,1747933882786,-420.0,0.00034246,5]
[362007289,1747933882796,-570.73,0.00034246,5]
[362007290,1747933882806,-420.0,0.00034246,5]
[362007291,1747933882816,-625.47,0.00034246,5]
[362007292,1747933882827,-420.0,0.00034246,5]
[362007293,1747933882837,-420.0,0.00034246,5]
[362007294,1747933882847,-420.0,0.00034246,5]
[362007295,1747933882856,-3607.16,0.00034246,5]
[362007296,1747933882866,-981.4,0.00034246,5]
[362007297,1747933882876,-257.2575,0.00034246,2]
[362007298,1747933882887,-1224.05,0.00034246,5]
[362007299,1747933882897,-420.0,0.00034246,5]
[362007300,1747933882906,-420.0,0.00034246,5]
[362007301,1747933882916,-420.0,0.00034246,5]
[362007302,1747933882926,-769.81,0.00034246,5]
[362007303,1747933882937,-420.0,0.00034246,5]
[362007304,1747933882947,-420.0,0.00034246,5]
[362007305,1747933882957,-537.06,0.00034246,5]
[362007306,1747933882966,-4553.04,0.00034246,5]
[362007307,1747933882976,-420.0,0.00034246,5]
[362007308,1747933882986,-1136.33,0.00034246,5]
[362007309,1747933882996,-602.44,0.00034246,5]
[362007310,1747933883006,-420.0,0.00034246,5]
[362007311,1747933883017,-682.83,0.00034246,5]
[362007312,1747933883028,-545.53,0.00034246,5]
[362007313,1747933883038,-617.12,0.00034246,5]
[362007314,1747933883048,-420.0,0.00034246,5]
[362007315,1747933883058,-578.41,0.00034246,5]
[362007316,1747933883067,-20351.89,0.00034246,5]
[362007317,1747933883077,-476.43,0.00034246,5]
[362007318,1747933883087,-477.04,0.00034246,5]
[362007319,1747933883097,-420.0,0.00034246,5]
[362007320,1747933883108,-490.47,0.00034246,5]
[362007321,1747933883118,-420.0,0.00034246,5]
[362007322,1747933883128,-420.0,0.00034246,5]
[362007323,1747933883154,-420.0,0.00034246,5]
[362007324,1747933883164,-420.0,0.00034246,5]
[362007325,1747933883174,-811.02,0.00034246,5]
[362007326,1747933883184,-1689.12,0.00034246,5]
[362007327,1747933883193,-1378.26,0.00034246,5]
[362007328,1747933883203,-505.25,0.00034246,5]
[362007329,1747933883213,-898.43,0.00034246,5]
[362007330,1747933883223,-420.0,0.00034246,5]
[362007331,1747933883232,-420.0,0.00034246,5]
[362007332,1747933883242,-997.18,0.00034246,5]
[362007333,1747933883252,-420.0,0.00034246,5]
[362007334,1747933883262,-660.15,0.00034246,5]
[362007335,1747933883272,-420.0,0.00034246,5]
[362007336,1747933883281,-703.8,0.00034246,5]
[362007337,1747933883291,-420.0,0.00034246,5]
[362007338,1747933883300,-550.31,0.00034246,5]
[362007339,1747933883310,-449.16,0.00034246,5]
[362007340,1747933883320,-214.51484308,0.00034246,5]
[362007341,1747933883329,-550.58,0.00034246,5]
[362007342,1747933883339,-472.36,0.00034246,5]
[362007343,1747933883349,-822.44,0.00034246,5]
[362007344,1747933883359,-716.72,0.00034246,5]
[362007345,1747933883368,-420.0,0.00034246,5]
[362007346,1747933883378,-420.0,0.00034246,5]
[362007347,1747933883387,-420.0,0.00034246,5]
[362007348,1747933883398,-1008.83,0.00034246,5]
[362007349,1747933883407,-867.21,0.00034246,5]
[362007350,1747933883417,-469.62,0.00034246,5]
[362007351,1747933883427,-745.26,0.00034246,5]
[362007352,1747933883437,-652.81,0.00034246,5]
[362007353,1747933883447,-420.0,0.00034246,5]
[362007354,1747933883456,-420.0,0.00034246,5]
[362007355,1747933883466,-420.0,0.00034246,5]
[362007356,1747933883476,-420.0,0.00034246,5]
[362007357,1747933883486,-420.0,0.00034246,5]
[362007358,1747933883495,-441.89,0.00034246,5]
[362007359,1747933883506,-420.0,0.00034246,5]
[362007360,1747933883516,-420.0,0.00034246,5]
[362007361,1747933883526,-1035.38,0.00034246,5]
[362007362,1747933883536,-420.0,0.00034246,5]
[362007363,1747933883546,-420.0,0.00034246,5]
[362007364,1747933883556,-420.0,0.00034246,5]
[362007365,1747933883566,-916.68,0.00034246,5]
[362007366,1747933883576,-1558.06,0.00034246,5]
[362007367,1747933883586,-420.0,0.00034246,5]
[362007368,1747933883596,-420.0,0.00034246,5]
[362007369,1747933883606,-420.0,0.00034246,5]
[362007370,1747933883616,-9657.78,0.00034246,5]
[362007371,1747933883626,-856.88,0.00034246,5]
[362007372,1747933883636,-420.0,0.00034246,5]
[362007373,1747933883647,-420.0,0.00034246,5]
[362007374,1747933883658,-420.0,0.00034246,5]
[362007375,1747933883668,-1492.64,0.00034246,2]
[362007376,1747933883678,-420.0,0.00034246,5]
[362007377,1747933883689,-852.89,0.00034246,5]
[362007378,1747933883699,-989.21,0.00034246,5]
[362007379,1747933883709,-662.91,0.00034246,5]
[362007380,1747933883719,-420.0,0.00034246,5]
[362007381,1747933883729,-482.81,0.00034246,5]
[362007382,1747933883740,-712.38,0.00034246,5]
[362007383,1747933883755,-420.0,0.00034246,5]
[362007384,1747933883766,-852.65,0.00034246,5]
[362007385,1747933883776,-420.0,0.00034246,5]
[362007386,1747933883787,-689.38,0.00034246,5]
[362007387,1747933883799,-420.0,0.00034246,5]
[362007388,1747933883810,-944.19,0.00034246,5]
[362007389,1747933883820,-420.0,0.00034246,5]
[362007390,1747933883831,-308.867933,0.00034246,5]
[362007391,1747933884231,-503.43,0.00032876,5]
[362007392,1747933884242,-503.43,0.0003315,5]
[362007393,1747933884252,-503.43,0.00033424,5]
[362007394,1747933884262,-8.22653442,0.00033698,5]
[362007395,1747933884278,-495.20346558,0.00033698,5]
[362007396,1747933884288,-502.27653442,0.00033972,5]
[362007397,1747933884308,-1.15346558,0.00033972,5]
[362007398,1747933884318,-454.862067,0.00034246,5]
[362007399,1747933884328,-420.0,0.00034246,5]
[362007400,1747933884339,-420.0,0.00034246,5]
[362007401,1747933884349,-682.05,0.00034246,5]
[362007402,1747933884359,-508.79,0.00034246,5]
[362007403,1747933884368,-420.0,0.00034246,5]
[362007404,1747933884378,-1132.56,0.00034246,5]
[362007405,1747933884388,-420.0,0.00034246,5]
[362007406,1747933884397,-7060.32,0.00034246,2]
[362007407,1747933884407,-587.53,0.00034246,5]
[362007408,1747933884417,-420.0,0.00034246,5]
[362007409,1747933884426,-420.0,0.00034246,5]
[362007410,1747933884436,-538.68,0.00034246,5]
[362007411,1747933884446,-1684.49,0.00034246,5]
[362007412,1747933884455,-2664.69,0.00034246,5]
[362007413,1747933884465,-472.67,0.00034246,5]
[362007414,1747933884474,-420.0,0.00034246,5]
[362007415,1747933884484,-1992.63,0.00034246,5]
[362007416,1747933884494,-398.73469632,0.00034246,5]
[362007417,1747933884504,-834.06,0.00034246,5]
[362007418,1747933884514,-760.49,0.00034246,5]
[362007419,1747933884523,-420.0,0.00034246,5]
[362007420,1747933884533,-695.29,0.00034246,5]
[362007421,1747933884542,-554.4475378,0.00034246,5]
[362007422,1747933884553,-487.94,0.00034246,5]
[362007423,1747933884563,-3002.7,0.00034246,5]
[362007424,1747933884574,-420.0,0.00034246,5]
[362007425,1747933884583,-714.9,0.00034246,5]
[362007426,1747933884593,-420.0,0.00034246,5]
[362007427,1747933884603,-420.0,0.00034246,5]
[362007428,1747933884613,-420.0,0.00034246,5]
[362007429,1747933884623,-420.0,0.00034246,5]
[362007430,1747933884633,-926.84,0.00034246,5]
[362007431,1747933884643,-420.0,0.00034246,5]
[362007432,1747933884653,-1535.61,0.00034246,5]
[362007433,1747933884663,-1008.31,0.00034246,5]
[362007434,1747933884672,-420.0,0.00034246,5]
[362007435,1747933884682,-790.41,0.00034246,5]
[362007436,1747933884692,-420.0,0.00034246,5]
[362007437,1747933884701,-420.0,0.00034246,5]
[362007438,1747933884711,-420.0,0.00034246,5]
[362007439,1747933884721,-414.12006824,0.00034246,5]
[362007440,1747933884730,-498.17,0.00034246,5]
[362007441,1747933884740,-420.0,0.00034246,5]
[362007442,1747933884752,-762.76,0.00034246,5]
[362007443,1747933884762,-671.75,0.00034246,5]
[362007444,1747933884771,-803.17,0.00034246,5]
[362007445,1747933884781,-496.74,0.00034246,5]
[362007446,1747933884791,-990.41,0.00034246,5]
[362007447,1747933884801,-420.0,0.00034246,5]
[362007448,1747933884810,-611.86,0.00034246,5]
[362007449,1747933884823,-603.63,0.00034246,5]
[362007450,1747933884834,-497.27,0.00034246,5]
[362007451,1747933884843,-420.0,0.00034246,5]
[362007452,1747933884855,-503.43,0.00034246,5]
[362007453,1747933884865,-1300.60918299,0.00034268,5]
[362007454,1747933884875,-1500.0,0.00034268,5]
[362007455,1747933884886,-1500.0,0.00034268,5]
[362007456,1747933885181,-1315.02634667,0.00034268,5]
[362007457,1747933885197,-1500.0,0.00034268,5]
[362007458,1747933885207,-606.95294259,0.00034268,5]
[362007459,1747933885217,-171.75215323,0.00034273,5]
[362007460,1747933885226,-1000.0,0.000343,2]
[362007461,1747933885236,-166.66666666,0.00034301,30]
[362007462,1747933885245,-716.75,0.00034309,2]
[362007463,1747933885255,-500.0,0.00034379,7]
[362007464,1747933885265,-416.26,0.000344,2]
[362007465,1747933885274,-4043.46,0.000344,2]
[362007466,1747933885284,-301.53,0.00034424,2]
[362007467,1747933885293,-1000.0,0.000345,2]
[362007468,1747933885303,-568.60398552,0.000345,2]
[362007469,1747933885312,-334.33543783,0.0003451,2]
[362007470,1747933885321,-150.0,0.00034519,2]
[362007471,1747933885331,-500.0,0.00034519,5]
[362007472,1747933885341,-420.0,0.0003452,14]
[362007473,1747933885352,-420.0,0.0003452,5]
[362007474,1747933885361,-420.0,0.0003452,5]
[362007475,1747933885371,-420.0,0.0003452,5]
[362007476,1747933885381,-420.0,0.0003452,5]
[362007477,1747933885390,-617.84,0.0003452,5]
[362007478,1747933885400,-557.43,0.0003452,5]
[362007479,1747933885409,-420.0,0.0003452,5]
[362007480,1747933885424,-420.0,0.0003452,5]
[362007481,1747933885433,-433.93,0.0003452,5]
[362007482,1747933885442,-420.0,0.0003452,5]
[362007483,1747933885452,-468.52,0.0003452,5]
[362007484,1747933885461,-420.0,0.0003452,5]
[362007485,1747933885471,-420.0,0.0003452,5]
[362007486,1747933885480,-420.0,0.0003452,5]
[362007487,1747933885489,-420.0,0.0003452,5]
[362007488,1747933885499,-420.0,0.0003452,5]
[362007489,1747933885511,-420.0,0.0003452,5]
[362007490,1747933885520,-420.0,0.0003452,5]
[362007491,1747933885530,-453.05,0.0003452,5]
[362007492,1747933885539,-420.0,0.0003452,5]
[362007493,1747933885548,-420.0,0.0003452,5]
[362007494,1747933885558,-457.43,0.0003452,5]
[362007495,1747933885568,-420.0,0.0003452,5]
[362007496,1747933885578,-550.44,0.0003452,5]
[362007497,1747933885587,-659.52,0.0003452,5]
[362007498,1747933885597,-440.04881654,0.0003452,5]
[362007499,1747933885607,-420.0,0.0003452,5]
[362007500,1747933885617,-420.0,0.0003452,5]
[362007501,1747933885626,-420.0,0.0003452,5]
[362007502,1747933885636,-294.53160972,0.0003452,5]
[362007503,1747933885646,-420.0,0.0003452,5]
[362007504,1747933885655,-577.96,0.0003452,5]
[362007505,1747933885665,-463.1,0.0003452,5]
[362007506,1747933885674,-547.33,0.0003452,5]
[362007507,1747933885683,-420.0,0.0003452,5]
[362007508,1747933885693,-261.67180171,0.0003452,5]
[362007509,1747933885703,-420.0,0.0003452,5]
[362007510,1747933885713,-463.0,0.0003452,5]
[362007511,1747933885723,-599.91,0.0003452,5]
[362007512,1747933885733,-420.0,0.0003452,5]
[362007513,1747933885743,-464.52,0.0003452,5]
[362007514,1747933885757,-486.25,0.0003452,5]
[362007515,1747933885767,-420.0,0.0003452,5]
[362007516,1747933885776,-697.31,0.0003452,5]
[362007517,1747933885787,-420.0,0.0003452,5]
[362007518,1747933885797,-420.0,0.0003452,5]
[362007519,1747933885806,-420.0,0.0003452,5]
[362007520,1747933885816,-420.0,0.0003452,5]
[362007521,1747933885827,-420.0,0.0003452,5]
[362007522,1747933885836,-420.0,0.0003452,5]
[362007523,1747933885846,-420.0,0.0003452,5]
[362007524,1747933885855,-420.0,0.0003452,5]
[362007525,1747933885864,-420.0,0.0003452,5]
[362007526,1747933885874,-529.35,0.0003452,5]
[362007527,1747933885883,-420.0,0.0003452,5]
[362007528,1747933885893,-197.9806237,0.0003452,5]
[362007529,1747933885902,-420.0,0.0003452,5]
[362007530,1747933885912,-420.0,0.0003452,5]
[362007531,1747933885921,-420.0,0.0003452,5]
[362007532,1747933885930,-468.75,0.0003452,5]
[362007533,1747933885941,-420.0,0.0003452,5]
[362007534,1747933885951,-662.62,0.0003452,5]
[362007535,1747933885962,-420.0,0.0003452,5]
[362007536,1747933885973,-420.0,0.0003452,5]
[362007537,1747933885984,-628.66,0.0003452,5]
[362007538,1747933885995,-420.0,0.0003452,5]
[362007539,1747933886010,-420.0,0.0003452,5]
[362007540,1747933886020,-253.1744378,0.0003452,5]
[362007541,1747933886031,-420.0,0.0003452,5]
[362007542,1747933886040,-420.0,0.0003452,5]
[362007543,1747933886050,-510.99,0.0003452,5]
[362007544,1747933886060,-420.0,0.0003452,5]
[362007545,1747933886071,-642.96,0.0003452,5]
[362007546,1747933886080,-442.25,0.0003452,5]
[362007547,1747933886090,-420.0,0.0003452,5]
[362007548,1747933886099,-420.0,0.0003452,5]
[362007549,1747933886109,-420.0,0.0003452,5]
[362007550,1747933886119,-420.0,0.0003452,5]
[362007551,1747933886130,-420.0,0.0003452,5]
[362007552,1747933886139,-469.92,0.0003452,5]
[362007553,1747933886148,-420.0,0.0003452,5]
[362007554,1747933886158,-589.11,0.0003452,5]
[362007555,1747933886167,-214.90468196,0.0003452,5]
[362007556,1747933886184,-254.19842059,0.0003452,5]
[362007557,1747933886193,-420.0,0.0003452,5]
[362007558,1747933886203,-420.0,0.0003452,5]
[362007559,1747933886215,-420.0,0.0003452,5]
[362007560,1747933886224,-466.21,0.0003452,5]
[362007561,1747933886234,-420.0,0.0003452,5]
[362007562,1747933886244,-420.0,0.0003452,5]
[362007563,1747933886256,-420.0,0.0003452,5]
[362007564,1747933886265,-420.0,0.0003452,5]
[362007565,1747933886274,-420.0,0.0003452,5]
[362007566,1747933886283,-420.0,0.0003452,5]
[362007567,1747933886293,-454.28,0.0003452,5]
[362007568,1747933886302,-464.75,0.0003452,5]
[362007569,1747933886311,-420.0,0.0003452,5]
[362007570,1747933886321,-543.11,0.0003452,5]
[362007571,1747933886331,-420.0,0.0003452,5]
[362007572,1747933886340,-404.99536339,0.0003452,5]
[362007573,1747933886350,-510.32,0.0003452,5]
[362007574,1747933886359,-561.89,0.0003452,5]
[362007575,1747933886368,-420.0,0.0003452,5]
[362007576,1747933886377,-482.92,0.0003452,5]
[362007577,1747933886387,-640.96,0.0003452,5]
[362007578,1747933886397,-628.61,0.0003452,5]
[362007579,1747933886407,-420.0,0.0003452,5]
[362007580,1747933886416,-508.22,0.0003452,5]
[362007581,1747933886426,-420.0,0.0003452,5]
[362007582,1747933886435,-420.0,0.0003452,5]
[362007583,1747933886445,-428.04,0.0003452,5]
[362007584,1747933886454,-438.13,0.0003452,5]
[362007585,1747933886463,-420.0,0.0003452,5]
[362007586,1747933886473,-928.4,0.0003452,5]
[362007587,1747933886482,-485.06,0.0003452,5]
[362007588,1747933886491,-559.16,0.0003452,5]
[362007589,1747933886505,-851.37,0.0003452,5]
[362007590,1747933886514,-420.0,0.0003452,5]
[362007591,1747933886524,-455.05,0.0003452,5]
[362007592,1747933886533,-281.8,0.0003452,5]
[362007593,1747933886543,-451.54,0.0003452,5]
[362007594,1747933886552,-488.65,0.0003452,5]
[362007595,1747933886562,-420.0,0.0003452,5]
[362007596,1747933886572,-420.0,0.0003452,5]
[362007597,1747933886581,-420.0,0.0003452,5]
[362007598,1747933886591,-200.38741592,0.0003452,5]
[362007599,1747933886608,-239.35258408,0.0003452,5]
[362007600,1747933886619,-420.0,0.0003452,5]
[362007601,1747933886628,-579.3,0.0003452,5]
[362007602,1747933886637,-420.0,0.0003452,5]
[362007603,1747933886647,-456.47,0.0003452,5]
[362007604,1747933886656,-1187.49,0.0003452,5]
[362007605,1747933886666,-585.77,0.0003452,5]
[362007606,1747933886675,-485.73,0.0003452,5]
[362007607,1747933886685,-420.0,0.0003452,5]
[362007608,1747933886695,-688.23,0.0003452,5]
[362007609,1747933886704,-420.0,0.0003452,5]
[362007610,1747933886713,-637.3,0.0003452,5]
[362007611,1747933886723,-420.0,0.0003452,5]
[362007612,1747933886732,-473.24,0.0003452,5]
[362007613,1747933886743,-535.16,0.0003452,5]
[362007614,1747933886760,-420.0,0.0003452,5]
[362007615,1747933886770,-420.0,0.0003452,5]
[362007616,1747933886779,-420.0,0.0003452,5]
[362007617,1747933886790,-420.0,0.0003452,5]
[362007618,1747933886799,-420.0,0.0003452,5]
[362007619,1747933886809,-536.00823824,0.0003452,5]
[362007620,1747933886818,-420.0,0.0003452,5]
[362007621,1747933886828,-420.0,0.0003452,5]
[362007622,1747933886838,-1350.67,0.0003452,5]
[362007623,1747933886847,-420.0,0.0003452,5]
[362007624,1747933886857,-420.0,0.0003452,5]
[362007625,1747933886867,-383.49236958,0.0003452,5]
[362007626,1747933886876,-501.6,0.0003452,5]
[362007627,1747933886886,-607.22,0.0003452,5]
[362007628,1747933886895,-420.0,0.0003452,5]
[362007629,1747933886905,-420.0,0.0003452,5]
[362007630,1747933886914,-470.61,0.0003452,5]
[362007631,1747933886924,-566.25,0.0003452,5]
[362007632,1747933886934,-420.0,0.0003452,5]
[362007633,1747933886950,-711.61,0.0003452,5]
[362007634,1747933886968,-475.69,0.0003452,5]
[362007635,1747933886977,-420.0,0.0003452,5]
[362007636,1747933886986,-454.53,0.0003452,5]
[362007637,1747933886996,-420.0,0.0003452,5]
[362007638,1747933887010,-420.0,0.0003452,5]
[362007639,1747933887019,-420.0,0.0003452,5]
[362007640,1747933887029,-420.0,0.0003452,5]
[362007641,1747933887038,-545.9,0.0003452,5]
[362007642,1747933887047,-420.0,0.0003452,5]
[362007643,1747933887056,-420.0,0.0003452,5]
[362007644,1747933887066,-1563.4,0.0003452,5]
[362007645,1747933887075,-589.57,0.0003452,5]
[362007646,1747933887085,-420.0,0.0003452,5]
[362007647,1747933887094,-481.76,0.0003452,5]
[362007648,1747933887104,-420.0,0.0003452,10]
[362007649,1747933887113,-420.0,0.0003452,5]
[362007650,1747933887123,-586.37,0.0003452,5]
[362007651,1747933887132,-559.24,0.0003452,5]
[362007652,1747933887141,-420.0,0.0003452,5]
[362007653,1747933887150,-1122.81,0.0003452,5]
[362007654,1747933887160,-420.0,0.0003452,5]
[362007655,1747933887169,-420.0,0.0003452,5]
[362007656,1747933887178,-420.0,0.0003452,5]
[362007657,1747933887187,-420.0,0.0003452,5]
[362007658,1747933887196,-727.36,0.0003452,5]
[362007659,1747933887206,-577.39,0.0003452,5]
[362007660,1747933887215,-644.15,0.0003452,5]
[362007661,1747933887224,-300.0,0.0003452,5]
[362007662,1747933887234,-572.15,0.0003452,5]
[362007663,1747933887243,-532.67,0.0003452,5]
[362007664,1747933887257,-493.12,0.0003452,5]
[362007665,1747933887267,-459.75,0.0003452,5]
[362007666,1747933887276,-843.51,0.0003452,5]
[362007667,1747933887285,-420.0,0.0003452,5]
[362007668,1747933887294,-420.0,0.0003452,5]
[362007669,1747933887304,-420.0,0.0003452,5]
[362007670,1747933887313,-593.15,0.0003452,5]
[362007671,1747933887322,-420.0,0.0003452,5]
[362007672,1747933887331,-533.84,0.0003452,5]
[362007673,1747933887341,-797.22,0.0003452,5]
[362007674,1747933887350,-529.35,0.0003452,5]
[362007675,1747933887360,-592.14,0.0003452,5]
[362007676,1747933887369,-420.0,0.0003452,5]
[362007677,1747933887379,-420.0,0.0003452,5]
[362007678,1747933887389,-682.38,0.0003452,5]
[362007679,1747933887398,-920.85,0.0003452,5]
[362007680,1747933887407,-603.95,0.0003452,5]
[362007681,1747933887417,-420.0,0.0003452,5]
[362007682,1747933887426,-420.0,0.0003452,5]
[362007683,1747933887435,-420.0,0.0003452,5]
[362007684,1747933887444,-438.47,0.0003452,5]
[362007685,1747933887453,-420.0,0.0003452,5]
[362007686,1747933887462,-420.0,0.0003452,5]
[362007687,1747933887473,-779.53,0.0003452,5]
[362007688,1747933887482,-420.0,0.0003452,5]
[362007689,1747933887492,-420.0,0.0003452,5]
[362007690,1747933887505,-482.75,0.0003452,5]
[362007691,1747933887515,-477.74,0.0003452,5]
[362007692,1747933887617,-420.0,0.0003452,5]
[362007693,1747933887627,-420.0,0.0003452,5]
[362007694,1747933887637,-430.85,0.0003452,5]
[362007695,1747933887647,-420.0,0.0003452,5]
[362007696,1747933887657,-420.0,0.0003452,5]
[362007697,1747933887666,-420.0,0.0003452,5]
[362007698,1747933887676,-420.0,0.0003452,5]
[362007699,1747933887686,-420.0,0.0003452,5]
[362007700,1747933887696,-669.62,0.0003452,5]
[362007701,1747933887706,-420.0,0.0003452,5]
[362007702,1747933887716,-420.0,0.0003452,5]
[362007703,1747933887725,-508.77,0.0003452,5]
[362007704,1747933887734,-420.0,0.0003452,5]
[362007705,1747933887746,-420.0,0.0003452,5]
[362007706,1747933887757,-310.9725455,0.0003452,5]
[362007707,1747933887766,-420.0,0.0003452,5]
[362007708,1747933887775,-495.88,0.0003452,5]
[362007709,1747933887785,-420.0,0.0003452,5]
[362007710,1747933887794,-459.41,0.0003452,5]
[362007711,1747933887803,-420.0,0.0003452,5]
[362007712,1747933887813,-420.0,0.0003452,5]
[362007713,1747933887823,-539.96,0.0003452,5]
[362007714,1747933887833,-438.4297919,0.0003452,5]
[362007715,1747933887842,-525.35,0.0003452,5]
[362007716,1747933887852,-510.6,0.0003452,5]
[362007717,1747933887862,-461.26084964,0.0003452,5]
[362007718,1747933887871,-420.0,0.0003452,5]
[362007719,1747933887881,-420.0,0.0003452,5]
[362007720,1747933887890,-420.0,0.0003452,5]
[362007721,1747933887900,-442.76,0.0003452,5]
[362007722,1747933887909,-420.0,0.0003452,5]
[362007723,1747933887919,-420.0,0.0003452,5]
[362007724,1747933887928,-494.37,0.0003452,5]
[362007725,1747933887938,-420.0,0.0003452,5]
[362007726,1747933887948,-420.0,0.0003452,5]
[362007727,1747933887958,-420.0,0.0003452,5]
[362007728,1747933887967,-420.0,0.0003452,5]
[362007729,1747933887977,-809.26,0.0003452,5]
[362007730,1747933887987,-562.55215517,0.0003452,5]
[362007731,1747933887996,-420.0,0.0003452,5]
[362007732,1747933888006,-282.61605353,0.0003452,5]
[362007733,1747933888015,-420.0,0.0003452,5]
[362007734,1747933888025,-420.0,0.0003452,5]
[362007735,1747933888034,-769.8,0.0003452,5]
[362007736,1747933888043,-420.0,0.0003452,5]